[Event "Titled Tuesday Blitz January 17 Late 2023"]
[White "Fajdetic, Hrvoje"]
[Black "Golubev, Mikhail"]
[WhiteFideId "14501945"]
[BlackFideId "14100983"]
[WhiteElo "2151"]
[BlackElo "2461"]
[Result "1-0"]
[Round "01"]
[TimeControl "180+2"]
[Date "2023.01.17"]
[WhiteClock "0:00:12"]
[BlackClock "0:00:02"]

1. d4 {[%clk 0:02:59]}  Nf6 {[%clk 0:02:58]} 2. Bf4 {[%clk 0:02:58]}  d6 {[%clk 0:02:57]} 3. Nc3 {[%clk 0:02:57]}  Nbd7 {[%clk 0:02:57]} 4. Nf3 {[%clk 0:02:55]}  c5 {[%clk 0:02:56]} 5. d5 {[%clk 0:02:53]}  b5 {[%clk 0:02:52]} 6. Nxb5 {[%clk 0:02:50]}  Rb8 {[%clk 0:02:45]} 7. Nc3 {[%clk 0:02:41]}  Rxb2 {[%clk 0:02:42]} 8. e4 {[%clk 0:02:33]}  g6 {[%clk 0:02:41]} 9. Bc4 {[%clk 0:02:23]}  Bg7 {[%clk 0:02:35]} 10. Bd2 {[%clk 0:02:19]}  Rb4 {[%clk 0:02:16]} 11. Qe2 {[%clk 0:02:17]}  O-O {[%clk 0:01:54]} 12. a3 {[%clk 0:02:16]}  Rb8 {[%clk 0:01:44]} 13. e5 {[%clk 0:01:56]}  Ng4 {[%clk 0:01:27]} 14. e6 {[%clk 0:01:46]}  Nde5 {[%clk 0:01:27]} 15. Nxe5 {[%clk 0:01:36]}  Nxe5 {[%clk 0:01:25]} 16. O-O {[%clk 0:01:31]}  Nxc4 {[%clk 0:01:17]} 17. Qxc4 {[%clk 0:01:32]}  fxe6 {[%clk 0:01:18]} 18. dxe6 {[%clk 0:01:30]}  Bb7 {[%clk 0:00:56]} 19. Rab1 {[%clk 0:01:03]}  Qc8 {[%clk 0:00:39]} 20. Rfe1 {[%clk 0:00:55]}  Qc6 {[%clk 0:00:36]} 21. Qg4 {[%clk 0:00:53]}  Bd4 {[%clk 0:00:25]} 22. Ne4 {[%clk 0:00:45]}  Rf5 {[%clk 0:00:12]} 23. c3 {[%clk 0:00:43]}  Bg7 {[%clk 0:00:08]} 24. f3 {[%clk 0:00:40]}  Rbf8 {[%clk 0:00:08]} 25. Ng5 {[%clk 0:00:36]}  Qd5 {[%clk 0:00:06]} 26. Rbd1 {[%clk 0:00:31]}  Ba6 {[%clk 0:00:04]} 27. Ne4 {[%clk 0:00:26]}  Qb3 {[%clk 0:00:04]} 28. Ng3 {[%clk 0:00:15]}  R5f6 {[%clk 0:00:02]} 29. Bg5 {[%clk 0:00:12]} 1-0


[Site "https://www.chess.com"]

[Event "Titled Tuesday Blitz January 17 Late 2023"]
[White "Wang, Alexander J"]
[Black "Al-Tarboush, Ward"]
[WhiteFideId "30955270"]
[BlackFideId "7601450"]
[WhiteElo "1815"]
[BlackElo "2256"]
[Result "1-0"]
[Round "01"]
[TimeControl "180+2"]
[Date "2023.01.17"]
[WhiteClock "0:00:43"]
[BlackClock "0:00:44"]

1. e4 {[%clk 0:02:59]}  c5 {[%clk 0:02:59]} 2. Nf3 {[%clk 0:02:58]}  Nc6 {[%clk 0:02:59]} 3. d4 {[%clk 0:02:58]}  cxd4 {[%clk 0:03:00]} 4. Nxd4 {[%clk 0:02:58]}  Nf6 {[%clk 0:03:00]} 5. Nc3 {[%clk 0:02:59]}  e5 {[%clk 0:03:01]} 6. Ndb5 {[%clk 0:02:58]}  d6 {[%clk 0:03:01]} 7. Bg5 {[%clk 0:02:56]}  a6 {[%clk 0:03:00]} 8. Na3 {[%clk 0:02:50]}  b5 {[%clk 0:03:00]} 9. Bxf6 {[%clk 0:02:47]}  gxf6 {[%clk 0:02:59]} 10. Nd5 {[%clk 0:02:46]}  f5 {[%clk 0:02:57]} 11. c3 {[%clk 0:02:43]}  fxe4 {[%clk 0:02:57]} 12. Nc2 {[%clk 0:02:36]}  Bg7 {[%clk 0:02:56]} 13. Nce3 {[%clk 0:02:35]}  O-O {[%clk 0:02:56]} 14. a4 {[%clk 0:02:26]}  Be6 {[%clk 0:02:51]} 15. axb5 {[%clk 0:02:25]}  axb5 {[%clk 0:02:52]} 16. Rxa8 {[%clk 0:02:25]}  Qxa8 {[%clk 0:02:53]} 17. Bxb5 {[%clk 0:02:24]}  Kh8 {[%clk 0:02:40]} 18. O-O {[%clk 0:02:14]}  f5 {[%clk 0:02:35]} 19. Nc7 {[%clk 0:02:13]}  Qb7 {[%clk 0:02:27]} 20. Nxe6 {[%clk 0:01:49]}  Qxb5 {[%clk 0:02:26]} 21. Nxf8 {[%clk 0:01:49]}  Bxf8 {[%clk 0:02:27]} 22. Nxf5 {[%clk 0:01:49]}  d5 {[%clk 0:02:28]} 23. Qh5 {[%clk 0:01:46]}  Qb7 {[%clk 0:02:19]} 24. Qe8 {[%clk 0:01:44]}  Kg8 {[%clk 0:02:09]} 25. Qe6+ {[%clk 0:01:40]}  Kh8 {[%clk 0:02:09]} 26. h4 {[%clk 0:01:33]}  d4 {[%clk 0:01:43]} 27. cxd4 {[%clk 0:01:32]}  exd4 {[%clk 0:01:43]} 28. Qxe4 {[%clk 0:01:28]}  Qb6 {[%clk 0:01:43]} 29. Qe8 {[%clk 0:01:25]}  Qc5 {[%clk 0:01:43]} 30. Qe6 {[%clk 0:01:20]}  d3 {[%clk 0:01:15]} 31. Qe4 {[%clk 0:01:15]}  Nb4 {[%clk 0:01:14]} 32. Qd4+ {[%clk 0:01:11]}  Qxd4 {[%clk 0:01:15]} 33. Nxd4 {[%clk 0:01:12]}  Bg7 {[%clk 0:01:15]} 34. Nf3 {[%clk 0:01:10]}  Bxb2 {[%clk 0:01:15]} 35. Rd1 {[%clk 0:01:08]}  Bc3 {[%clk 0:01:11]} 36. Ne1 {[%clk 0:01:04]}  Bxe1 {[%clk 0:00:55]} 37. Rxe1 {[%clk 0:01:05]}  Kg7 {[%clk 0:00:55]} 38. Rb1 {[%clk 0:00:58]}  Nd5 {[%clk 0:00:51]} 39. Rb3 {[%clk 0:00:54]}  Nf4 {[%clk 0:00:49]} 40. g3 {[%clk 0:00:50]}  d2 {[%clk 0:00:49]} 41. Rb7+ {[%clk 0:00:46]}  Kf6 {[%clk 0:00:49]} 42. Rd7 {[%clk 0:00:46]}  Ne2+ {[%clk 0:00:47]} 43. Kh2 {[%clk 0:00:45]}  Ke5 {[%clk 0:00:44]} 44. Rxd2 {[%clk 0:00:45]}  Nd4 {[%clk 0:00:45]} 45. Kg2 {[%clk 0:00:45]}  Ke4 {[%clk 0:00:45]} 46. f3+ {[%clk 0:00:42]}  Ke3 {[%clk 0:00:44]} 47. Rxd4 {[%clk 0:00:41]}  Kxd4 {[%clk 0:00:44]} 48. g4 {[%clk 0:00:42]}  Ke3 {[%clk 0:00:44]} 49. Kg3 {[%clk 0:00:42]}  Kd4 {[%clk 0:00:44]} 50. Kf4 {[%clk 0:00:43]}  Kd5 {[%clk 0:00:44]} 51. Kg5 {[%clk 0:00:43]} 1-0


[Site "https://www.chess.com"]

[Event "Titled Tuesday Blitz January 17 Late 2023"]
[White "Baules Rodriguez, Jorge Luis"]
[Black "Sabar, Ethmane Daouda"]
[WhiteFideId "6600247"]
[BlackFideId "19600097"]
[WhiteElo "2304"]
[BlackElo "2040"]
[Result "1-0"]
[Round "01"]
[TimeControl "180+2"]
[Date "2023.01.17"]
[WhiteClock "0:00:25"]
[BlackClock "0:00:02"]

1. e4 {[%clk 0:03:00]}  e5 {[%clk 0:02:58]} 2. Nf3 {[%clk 0:03:00]}  Nc6 {[%clk 0:02:58]} 3. Bb5 {[%clk 0:03:00]}  f5 {[%clk 0:02:56]} 4. Nc3 {[%clk 0:02:59]}  fxe4 {[%clk 0:02:51]} 5. Nxe4 {[%clk 0:02:59]}  d5 {[%clk 0:02:48]} 6. Nxe5 {[%clk 0:02:59]}  dxe4 {[%clk 0:02:47]} 7. Nxc6 {[%clk 0:02:58]}  Qg5 {[%clk 0:02:47]} 8. Qe2 {[%clk 0:02:56]}  Nf6 {[%clk 0:02:19]} 9. f4 {[%clk 0:02:37]}  Qxf4 {[%clk 0:02:04]} 10. d4 {[%clk 0:02:31]}  Qh4+ {[%clk 0:02:02]} 11. g3 {[%clk 0:02:30]}  Qh3 {[%clk 0:01:58]} 12. Ne5+ {[%clk 0:02:27]}  c6 {[%clk 0:01:45]} 13. Bc4 {[%clk 0:02:26]}  Bd6 {[%clk 0:01:35]} 14. Bf4 {[%clk 0:02:14]}  Bxe5 {[%clk 0:01:18]} 15. dxe5 {[%clk 0:02:03]}  Bg4 {[%clk 0:01:16]} 16. Qf1 {[%clk 0:01:41]}  Qxf1+ {[%clk 0:00:32]} 17. Rxf1 {[%clk 0:01:33]}  Nd5 {[%clk 0:00:33]} 18. Bd2 {[%clk 0:01:31]}  O-O-O {[%clk 0:00:18]} 19. Be2 {[%clk 0:01:06]}  Bh3 {[%clk 0:00:12]} 20. Rf7 {[%clk 0:01:05]}  e3 {[%clk 0:00:11]} 21. Bc1 {[%clk 0:00:39]}  Rhe8 {[%clk 0:00:09]} 22. a3 {[%clk 0:00:31]}  Rxe5 {[%clk 0:00:08]} 23. Rxg7 {[%clk 0:00:31]}  Rf8 {[%clk 0:00:06]} 24. Rxh7 {[%clk 0:00:30]}  Be6 {[%clk 0:00:02]} 25. c4 {[%clk 0:00:25]} 1-0


[Site "https://www.chess.com"]

[Event "Titled Tuesday Blitz January 17 Late 2023"]
[White "Weissbarth, Adam"]
[Black "Bilan, Danila"]
[WhiteFideId "2018187"]
[BlackFideId "24161918"]
[WhiteElo "2144"]
[BlackElo "2303"]
[Result "0-1"]
[Round "01"]
[TimeControl "180+2"]
[Date "2023.01.17"]
[WhiteClock "0:00:12"]
[BlackClock "0:00:10"]

1. e4 {[%clk 0:02:59]}  c6 {[%clk 0:02:58]} 2. d4 {[%clk 0:02:59]}  d5 {[%clk 0:02:58]} 3. exd5 {[%clk 0:02:59]}  cxd5 {[%clk 0:02:58]} 4. Nf3 {[%clk 0:02:59]}  Nf6 {[%clk 0:02:58]} 5. Ne5 {[%clk 0:02:59]}  Nc6 {[%clk 0:02:57]} 6. Bb5 {[%clk 0:02:59]}  Bd7 {[%clk 0:02:56]} 7. Nxd7 {[%clk 0:02:59]}  Qxd7 {[%clk 0:02:57]} 8. c3 {[%clk 0:02:59]}  e6 {[%clk 0:02:58]} 9. O-O {[%clk 0:02:58]}  Bd6 {[%clk 0:02:58]} 10. Re1 {[%clk 0:02:58]}  O-O {[%clk 0:02:55]} 11. Nd2 {[%clk 0:02:56]}  Qe7 {[%clk 0:02:40]} 12. Bd3 {[%clk 0:02:32]}  Qc7 {[%clk 0:02:37]} 13. Nf3 {[%clk 0:02:29]}  Bf4 {[%clk 0:02:38]} 14. g3 {[%clk 0:02:17]}  Bxc1 {[%clk 0:02:36]} 15. Rxc1 {[%clk 0:02:14]}  Rab8 {[%clk 0:02:33]} 16. Ne5 {[%clk 0:02:11]}  b5 {[%clk 0:02:29]} 17. a3 {[%clk 0:01:49]}  Na5 {[%clk 0:02:03]} 18. h4 {[%clk 0:01:32]}  Nc4 {[%clk 0:01:54]} 19. Rc2 {[%clk 0:01:23]}  a5 {[%clk 0:01:47]} 20. h5 {[%clk 0:01:22]}  Rfc8 {[%clk 0:01:31]} 21. Qf3 {[%clk 0:01:11]}  h6 {[%clk 0:01:19]} 22. Rce2 {[%clk 0:01:02]}  b4 {[%clk 0:01:08]} 23. axb4 {[%clk 0:00:51]}  axb4 {[%clk 0:01:08]} 24. g4 {[%clk 0:00:26]}  bxc3 {[%clk 0:00:41]} 25. bxc3 {[%clk 0:00:27]}  Nd6 {[%clk 0:00:39]} 26. g5 {[%clk 0:00:18]}  hxg5 {[%clk 0:00:20]} 27. h6 {[%clk 0:00:19]}  Nfe4 {[%clk 0:00:14]} 28. hxg7 {[%clk 0:00:17]}  f5 {[%clk 0:00:12]} 29. Qh3 {[%clk 0:00:14]}  Qxg7 {[%clk 0:00:11]} 30. Qh5 {[%clk 0:00:12]}  Nf6 {[%clk 0:00:09]} 31. Qh2 {[%clk 0:00:11]}  Rxc3 {[%clk 0:00:09]} 32. f3 {[%clk 0:00:11]}  Rbc8 {[%clk 0:00:08]} 33. Bb1 {[%clk 0:00:10]}  f4 {[%clk 0:00:07]} 34. Ng4 {[%clk 0:00:10]}  Nxg4 {[%clk 0:00:06]} 35. fxg4 {[%clk 0:00:10]}  Qxd4+ {[%clk 0:00:07]} 36. Kh1 {[%clk 0:00:10]}  Ne4 {[%clk 0:00:07]} 37. Rxe4 {[%clk 0:00:10]}  dxe4 {[%clk 0:00:08]} 38. Bxe4 {[%clk 0:00:10]}  Qh8 {[%clk 0:00:08]} 39. Qxh8+ {[%clk 0:00:10]}  Kxh8 {[%clk 0:00:09]} 40. Bg6 {[%clk 0:00:10]}  Rc1 {[%clk 0:00:09]} 41. Rxc1 {[%clk 0:00:10]}  Rxc1+ {[%clk 0:00:10]} 42. Kg2 {[%clk 0:00:11]}  Kg7 {[%clk 0:00:10]} 43. Kf3 {[%clk 0:00:12]}  Rc3+ {[%clk 0:00:10]} 0-1


[Site "https://www.chess.com"]

[Event "Titled Tuesday Blitz January 17 Late 2023"]
[White "Berezin, Viktor"]
[Black "Ferreira, Thales Bond Dias"]
[WhiteFideId "14107872"]
[BlackFideId "22777830"]
[WhiteElo "2307"]
[BlackElo "2085"]
[Result "1-0"]
[Round "01"]
[TimeControl "180+2"]
[Date "2023.01.17"]
[WhiteClock "0:01:58"]
[BlackClock "0:01:58"]

1. d4 {[%clk 0:02:58]}  d5 {[%clk 0:02:58]} 2. c4 {[%clk 0:02:58]}  e6 {[%clk 0:02:58]} 3. Nf3 {[%clk 0:02:57]}  Nf6 {[%clk 0:02:58]} 4. g3 {[%clk 0:02:57]}  Be7 {[%clk 0:02:57]} 5. Bg2 {[%clk 0:02:58]}  O-O {[%clk 0:02:57]} 6. O-O {[%clk 0:02:59]}  c6 {[%clk 0:02:58]} 7. Nc3 {[%clk 0:02:54]}  Nbd7 {[%clk 0:02:58]} 8. b3 {[%clk 0:02:54]}  b6 {[%clk 0:02:59]} 9. Bb2 {[%clk 0:02:54]}  Bb7 {[%clk 0:02:58]} 10. Rc1 {[%clk 0:02:55]}  Rc8 {[%clk 0:02:58]} 11. Re1 {[%clk 0:02:55]}  Re8 {[%clk 0:02:58]} 12. e4 {[%clk 0:02:55]}  dxe4 {[%clk 0:02:58]} 13. Nxe4 {[%clk 0:02:56]}  Nxe4 {[%clk 0:02:57]} 14. Rxe4 {[%clk 0:02:57]}  Nf6 {[%clk 0:02:58]} 15. Re1 {[%clk 0:02:56]}  c5 {[%clk 0:02:58]} 16. dxc5 {[%clk 0:02:42]}  Bxc5 {[%clk 0:02:54]} 17. Qc2 {[%clk 0:02:42]}  Be7 {[%clk 0:02:49]} 18. Rcd1 {[%clk 0:02:41]}  Qc7 {[%clk 0:02:48]} 19. Be5 {[%clk 0:02:38]}  Qc5 {[%clk 0:02:45]} 20. Bd4 {[%clk 0:02:37]}  Qc7 {[%clk 0:02:44]} 21. Qb2 {[%clk 0:02:29]}  Red8 {[%clk 0:02:43]} 22. h3 {[%clk 0:02:25]}  Ne8 {[%clk 0:02:39]} 23. Kh2 {[%clk 0:02:19]}  Bf6 {[%clk 0:02:37]} 24. Bxf6 {[%clk 0:02:07]}  Nxf6 {[%clk 0:02:37]} 25. Qe5 {[%clk 0:02:01]}  Qxe5 {[%clk 0:02:33]} 26. Nxe5 {[%clk 0:02:02]}  Bxg2 {[%clk 0:02:33]} 27. Kxg2 {[%clk 0:02:03]}  Kf8 {[%clk 0:02:13]} 28. f4 {[%clk 0:02:01]}  Rxd1 {[%clk 0:02:05]} 29. Rxd1 {[%clk 0:02:01]}  Ke8 {[%clk 0:02:01]} 30. Kf3 {[%clk 0:02:00]}  Rd8 {[%clk 0:02:01]} 31. Rxd8+ {[%clk 0:01:59]}  Kxd8 {[%clk 0:01:58]} 32. Nxf7+ {[%clk 0:01:57]}  Ke7 {[%clk 0:01:58]} 33. Ne5 {[%clk 0:01:58]}  Nd7 {[%clk 0:01:58]} 34. Nc6+ {[%clk 0:01:58]} 1-0


[Site "https://www.chess.com"]

[Event "Titled Tuesday Blitz January 17 Late 2023"]
[White "Harish, Neeraj"]
[Black "Souleidis, Georgios"]
[WhiteFideId "30958130"]
[BlackFideId "4206827"]
[WhiteElo "2232"]
[BlackElo "2419"]
[Result "1-0"]
[Round "01"]
[TimeControl "180+2"]
[Date "2023.01.17"]
[WhiteClock "0:00:36"]
[BlackClock "0:01:17"]

1. e4 {[%clk 0:02:05]}  c5 {[%clk 0:02:59]} 2. Nf3 {[%clk 0:02:04]}  e6 {[%clk 0:02:55]} 3. d4 {[%clk 0:02:04]}  cxd4 {[%clk 0:02:55]} 4. Nxd4 {[%clk 0:02:05]}  Nf6 {[%clk 0:02:54]} 5. Nc3 {[%clk 0:02:03]}  Nc6 {[%clk 0:02:54]} 6. Ndb5 {[%clk 0:02:03]}  Bc5 {[%clk 0:02:53]} 7. Bf4 {[%clk 0:02:01]}  O-O {[%clk 0:02:53]} 8. Bc7 {[%clk 0:02:01]}  Qe7 {[%clk 0:02:51]} 9. Bd6 {[%clk 0:01:59]}  Bxd6 {[%clk 0:02:52]} 10. Qxd6 {[%clk 0:01:56]}  Qd8 {[%clk 0:02:52]} 11. O-O-O {[%clk 0:01:55]}  a6 {[%clk 0:02:52]} 12. Nd4 {[%clk 0:01:54]}  Ne7 {[%clk 0:02:49]} 13. Qg3 {[%clk 0:01:47]}  b5 {[%clk 0:02:39]} 14. e5 {[%clk 0:01:35]}  Nfd5 {[%clk 0:02:32]} 15. Ne4 {[%clk 0:01:35]}  f6 {[%clk 0:01:54]} 16. exf6 {[%clk 0:01:09]}  Nxf6 {[%clk 0:01:55]} 17. Nxe6 {[%clk 0:01:09]}  dxe6 {[%clk 0:01:44]} 18. Nxf6+ {[%clk 0:01:02]}  Kf7 {[%clk 0:01:23]} 19. Rxd8 {[%clk 0:00:58]}  Rxd8 {[%clk 0:01:24]} 20. Nxh7 {[%clk 0:00:58]}  Nf5 {[%clk 0:01:21]} 21. Ng5+ {[%clk 0:00:49]}  Kg6 {[%clk 0:01:18]} 22. Qg4 {[%clk 0:00:42]}  Nh6 {[%clk 0:01:17]} 23. Qe4+ {[%clk 0:00:36]} 1-0


[Site "https://www.chess.com"]

[Event "Titled Tuesday Blitz January 17 Late 2023"]
[White "Mendez Fortes, Eduardo Jesus"]
[Black "ritanovikova"]
[WhiteFideId "3502376"]
[WhiteElo "2250"]
[BlackElo "2148"]
[Result "1-0"]
[Round "01"]
[TimeControl "180+2"]
[Date "2023.01.17"]
[WhiteClock "0:00:11"]
[BlackClock "0:00:01"]

1. e4 {[%clk 0:02:59]}  e6 {[%clk 0:02:53]} 2. d4 {[%clk 0:02:58]}  d5 {[%clk 0:02:52]} 3. Nd2 {[%clk 0:02:59]}  Ne7 {[%clk 0:02:51]} 4. Ngf3 {[%clk 0:02:57]}  Nd7 {[%clk 0:02:47]} 5. c3 {[%clk 0:02:56]}  c5 {[%clk 0:02:44]} 6. exd5 {[%clk 0:02:56]}  Nxd5 {[%clk 0:02:41]} 7. Bc4 {[%clk 0:02:53]}  cxd4 {[%clk 0:02:38]} 8. Nxd4 {[%clk 0:02:51]}  N7b6 {[%clk 0:02:38]} 9. Bb3 {[%clk 0:02:50]}  Be7 {[%clk 0:02:36]} 10. O-O {[%clk 0:02:49]}  O-O {[%clk 0:02:35]} 11. N2f3 {[%clk 0:02:49]}  Nf6 {[%clk 0:02:31]} 12. Re1 {[%clk 0:02:48]}  Nbd7 {[%clk 0:02:27]} 13. Qe2 {[%clk 0:02:45]}  Nc5 {[%clk 0:02:26]} 14. Bc2 {[%clk 0:02:44]}  a6 {[%clk 0:02:25]} 15. Ne5 {[%clk 0:02:43]}  Ncd7 {[%clk 0:02:17]} 16. Nef3 {[%clk 0:02:37]}  Nc5 {[%clk 0:02:13]} 17. Bg5 {[%clk 0:02:33]}  Nd5 {[%clk 0:02:07]} 18. Bxe7 {[%clk 0:02:29]}  Qxe7 {[%clk 0:02:06]} 19. Rad1 {[%clk 0:02:29]}  Nf6 {[%clk 0:02:05]} 20. Ne5 {[%clk 0:02:25]}  Ncd7 {[%clk 0:02:04]} 21. f4 {[%clk 0:02:22]}  Nd5 {[%clk 0:01:59]} 22. Rf1 {[%clk 0:02:04]}  b6 {[%clk 0:01:26]} 23. Be4 {[%clk 0:01:49]}  Bb7 {[%clk 0:01:26]} 24. Bb1 {[%clk 0:01:30]}  N7f6 {[%clk 0:01:18]} 25. c4 {[%clk 0:01:27]}  Nc7 {[%clk 0:01:11]} 26. h3 {[%clk 0:01:23]}  Rad8 {[%clk 0:01:07]} 27. Kh2 {[%clk 0:01:20]}  Nce8 {[%clk 0:01:02]} 28. Rd2 {[%clk 0:01:14]}  Qc7 {[%clk 0:00:59]} 29. Rfd1 {[%clk 0:01:09]}  Nd6 {[%clk 0:00:55]} 30. b3 {[%clk 0:01:07]}  Nde4 {[%clk 0:00:44]} 31. Bxe4 {[%clk 0:01:04]}  Bxe4 {[%clk 0:00:44]} 32. Qe3 {[%clk 0:00:58]}  Bg6 {[%clk 0:00:43]} 33. Ndf3 {[%clk 0:00:55]}  Ne4 {[%clk 0:00:42]} 34. Rd4 {[%clk 0:00:51]}  Rxd4 {[%clk 0:00:40]} 35. Rxd4 {[%clk 0:00:52]}  Nd6 {[%clk 0:00:36]} 36. Qd2 {[%clk 0:00:46]}  Nf5 {[%clk 0:00:36]} 37. Rd7 {[%clk 0:00:43]}  Qc5 {[%clk 0:00:34]} 38. g4 {[%clk 0:00:35]}  Ne3 {[%clk 0:00:26]} 39. b4 {[%clk 0:00:33]}  Nf1+ {[%clk 0:00:25]} 40. Kg2 {[%clk 0:00:29]}  Qxe5 {[%clk 0:00:20]} 41. Nxe5 {[%clk 0:00:26]}  Nxd2 {[%clk 0:00:20]} 42. Rxd2 {[%clk 0:00:27]}  Be4+ {[%clk 0:00:19]} 43. Kf2 {[%clk 0:00:27]}  f6 {[%clk 0:00:18]} 44. Nd7 {[%clk 0:00:25]}  Re8 {[%clk 0:00:17]} 45. Nxb6 {[%clk 0:00:25]}  Kf7 {[%clk 0:00:16]} 46. c5 {[%clk 0:00:25]}  Bc6 {[%clk 0:00:15]} 47. Rd6 {[%clk 0:00:24]}  Bb5 {[%clk 0:00:15]} 48. a4 {[%clk 0:00:22]}  Bxa4 {[%clk 0:00:06]} 49. Nxa4 {[%clk 0:00:22]}  e5 {[%clk 0:00:07]} 50. fxe5 {[%clk 0:00:21]}  Rxe5 {[%clk 0:00:04]} 51. Rxa6 {[%clk 0:00:22]}  Re4 {[%clk 0:00:03]} 52. Rb6 {[%clk 0:00:21]}  Kg6 {[%clk 0:00:03]} 53. c6 {[%clk 0:00:22]}  Kg5 {[%clk 0:00:03]} 54. c7 {[%clk 0:00:22]}  Kh4 {[%clk 0:00:04]} 55. c8=Q {[%clk 0:00:22]}  Kxh3 {[%clk 0:00:04]} 56. g5+ {[%clk 0:00:21]}  Kh4 {[%clk 0:00:03]} 57. gxf6 {[%clk 0:00:21]}  gxf6 {[%clk 0:00:03]} 58. Rxf6 {[%clk 0:00:19]}  h5 {[%clk 0:00:03]} 59. Qc3 {[%clk 0:00:14]}  Rg4 {[%clk 0:00:01]} 60. Qf3 {[%clk 0:00:14]}  Rg2+ {[%clk 0:00:01]} 61. Ke1 {[%clk 0:00:11]} 1-0


[Site "https://www.chess.com"]

[Event "Titled Tuesday Blitz January 17 Late 2023"]
[White "Levine, David"]
[Black "Ibadov, Dashgyn"]
[WhiteFideId "2011611"]
[BlackFideId "24107514"]
[WhiteElo "2040"]
[BlackElo "2391"]
[Result "0-1"]
[Round "01"]
[TimeControl "180+2"]
[Date "2023.01.17"]
[WhiteClock "0:00:01"]
[BlackClock "0:00:28"]

1. d4 {[%clk 0:02:31]}  Nf6 {[%clk 0:02:59]} 2. c4 {[%clk 0:02:31]}  c5 {[%clk 0:02:59]} 3. d5 {[%clk 0:02:30]}  d6 {[%clk 0:02:59]} 4. Nc3 {[%clk 0:02:29]}  g6 {[%clk 0:03:00]} 5. Nf3 {[%clk 0:02:28]}  Bg7 {[%clk 0:03:01]} 6. g3 {[%clk 0:02:28]}  O-O {[%clk 0:03:01]} 7. Bg2 {[%clk 0:02:29]}  e6 {[%clk 0:03:02]} 8. O-O {[%clk 0:02:29]}  exd5 {[%clk 0:03:03]} 9. cxd5 {[%clk 0:02:29]}  Re8 {[%clk 0:03:03]} 10. Bf4 {[%clk 0:02:28]}  Bf5 {[%clk 0:03:03]} 11. Nd2 {[%clk 0:02:24]}  Nh5 {[%clk 0:03:02]} 12. Be3 {[%clk 0:02:21]}  Nd7 {[%clk 0:03:02]} 13. h3 {[%clk 0:02:19]}  Nxg3 {[%clk 0:02:53]} 14. Bf4 {[%clk 0:02:15]}  Nxf1 {[%clk 0:02:51]} 15. Nxf1 {[%clk 0:02:11]}  Ne5 {[%clk 0:02:49]} 16. e4 {[%clk 0:02:09]}  Bd7 {[%clk 0:02:45]} 17. Bg3 {[%clk 0:02:06]}  b5 {[%clk 0:02:35]} 18. f4 {[%clk 0:01:58]}  Nc4 {[%clk 0:02:30]} 19. Qb3 {[%clk 0:01:50]}  Nxb2 {[%clk 0:02:23]} 20. Qxb2 {[%clk 0:01:46]}  b4 {[%clk 0:02:23]} 21. e5 {[%clk 0:01:47]}  bxc3 {[%clk 0:02:22]} 22. Qxc3 {[%clk 0:01:47]}  dxe5 {[%clk 0:01:53]} 23. fxe5 {[%clk 0:01:46]}  Qg5 {[%clk 0:01:53]} 24. Re1 {[%clk 0:01:41]}  Bb5 {[%clk 0:01:34]} 25. Kh2 {[%clk 0:01:21]}  Rad8 {[%clk 0:01:24]} 26. d6 {[%clk 0:01:06]}  Rxd6 {[%clk 0:01:09]} 27. Qxc5 {[%clk 0:01:06]}  Rb6 {[%clk 0:01:04]} 28. Bd5 {[%clk 0:00:57]}  Bxf1 {[%clk 0:00:56]} 29. Rxf1 {[%clk 0:00:56]}  Rb2+ {[%clk 0:00:56]} 30. Rf2 {[%clk 0:00:26]}  Rxf2+ {[%clk 0:00:35]} 31. Qxf2 {[%clk 0:00:23]}  Qf5 {[%clk 0:00:34]} 32. Qxf5 {[%clk 0:00:05]}  gxf5 {[%clk 0:00:35]} 33. e6 {[%clk 0:00:03]}  fxe6 {[%clk 0:00:34]} 34. Bb3 {[%clk 0:00:03]}  Kf7 {[%clk 0:00:32]} 35. Kg2 {[%clk 0:00:03]}  Bd4 {[%clk 0:00:29]} 36. Kf3 {[%clk 0:00:03]}  Kf6 {[%clk 0:00:27]} 37. Bh4+ {[%clk 0:00:02]}  Kg6 {[%clk 0:00:28]} 38. Bg3 {[%clk 0:00:01]}  e5 {[%clk 0:00:28]} 0-1


[Site "https://www.chess.com"]

[Event "Titled Tuesday Blitz January 17 Late 2023"]
[White "Bongo Akanga Ndjila, Barthelemy"]
[Black "TheKnightOfBosnia"]
[WhiteFideId "10609431"]
[WhiteElo "1824"]
[BlackElo "2530"]
[Result "0-1"]
[Round "01"]
[TimeControl "180+2"]
[Date "2023.01.17"]
[WhiteClock "0:01:48"]
[BlackClock "0:01:47"]

1. d4 {[%clk 0:02:56]}  Nf6 {[%clk 0:02:59]} 2. Nf3 {[%clk 0:02:49]}  e6 {[%clk 0:02:57]} 3. c4 {[%clk 0:02:47]}  Bb4+ {[%clk 0:02:57]} 4. Bd2 {[%clk 0:02:45]}  a5 {[%clk 0:02:57]} 5. g3 {[%clk 0:02:44]}  O-O {[%clk 0:02:57]} 6. Bg2 {[%clk 0:02:44]}  d5 {[%clk 0:02:58]} 7. Qc2 {[%clk 0:02:43]}  Nbd7 {[%clk 0:02:44]} 8. O-O {[%clk 0:02:42]}  b6 {[%clk 0:02:29]} 9. Bf4 {[%clk 0:02:38]}  Bd6 {[%clk 0:02:23]} 10. Bg5 {[%clk 0:02:34]}  Ba6 {[%clk 0:02:21]} 11. cxd5 {[%clk 0:02:30]}  exd5 {[%clk 0:02:19]} 12. Rc1 {[%clk 0:02:29]}  h6 {[%clk 0:02:19]} 13. Bf4 {[%clk 0:02:23]}  Bxf4 {[%clk 0:02:17]} 14. gxf4 {[%clk 0:02:24]}  Rc8 {[%clk 0:02:16]} 15. Ne5 {[%clk 0:02:22]}  c5 {[%clk 0:02:12]} 16. dxc5 {[%clk 0:02:11]}  Nxe5 {[%clk 0:02:11]} 17. fxe5 {[%clk 0:02:10]}  Rxc5 {[%clk 0:02:11]} 18. Qd1 {[%clk 0:02:10]}  Rxc1 {[%clk 0:02:01]} 19. Qxc1 {[%clk 0:02:08]}  Ng4 {[%clk 0:02:00]} 20. Qf4 {[%clk 0:02:00]}  Qg5 {[%clk 0:01:49]} 21. Qxg4 {[%clk 0:01:48]}  Qxg4 {[%clk 0:01:47]} 0-1


[Site "https://www.chess.com"]